fUSD/lending_fUSD_20240803
["ID","MTS","AMOUNT","RATE_DAILY","PERIOD"]
[334005440,1722672696168,-774.79,0.0001863,2]
[334005441,1722672696178,-500.0,0.0001863,2]
[334005442,1722672696187,-500.0,0.0001863,2]
[334005443,1722672696198,-500.0,0.0001863,2]
[334005444,1722672696209,-466.18114116,0.0001863,2]
[334005445,1722672696221,-500.0,0.0001863,2]
[334005446,1722672696232,-500.0,0.0001863,2]
[334005447,1722672696241,-682.31,0.0001863,2]
[334005448,1722672696252,-500.0,0.0001863,2]
[334005449,1722672696263,-500.0,0.0001863,2]
[334005450,1722672696273,-500.0,0.0001863,2]
[334005451,1722672696284,-648.41,0.0001863,2]
[334005452,1722672696296,-500.0,0.0001863,2]
[334005453,1722672696307,-795.59,0.0001863,2]
[334005454,1722672696318,-500.0,0.0001863,2]
[334005455,1722672696329,-500.0,0.0001863,2]
[334005456,1722672696340,-500.0,0.0001863,2]
[334005457,1722672696350,-723.82,0.0001863,2]
[334005458,1722672696360,-500.0,0.0001863,2]
[334005459,1722672696370,-500.0,0.0001863,2]
[334005460,1722672696379,-500.0,0.0001863,2]
[334005461,1722672696389,-500.0,0.0001863,2]
[334005462,1722672696398,-152.36962065,0.0001863,2]
[334005463,1722672696407,-500.0,0.0001863,2]
[334005464,1722672696416,-1168.92,0.0001863,2]
[334005465,1722672696426,-819.92,0.0001863,2]
[334005466,1722672696435,-500.0,0.0001863,2]
[334005467,1722672696444,-500.0,0.0001863,2]
[334005468,1722672696453,-508.94,0.0001863,2]
[334005469,1722672696462,-582.03,0.0001863,2]
[334005470,1722672696472,-500.0,0.0001863,2]
[334005471,1722672696482,-618.32,0.0001863,2]
[334005472,1722672696492,-1159.6,0.0001863,2]
[334005473,1722672696501,-500.0,0.0001863,2]
[334005474,1722672696510,-500.0,0.0001863,2]
[334005475,1722672696524,-500.0,0.0001863,2]
[334005476,1722672696534,-500.0,0.0001863,2]
[334005477,1722672696543,-577.66,0.0001863,2]
[334005478,1722672696553,-500.0,0.0001863,2]
[334005479,1722672696564,-500.0,0.0001863,2]
[334005480,1722672696655,-549.41,0.0001863,2]
[334005481,1722672696665,-530.35,0.0001863,2]
[334005482,1722672696675,-500.0,0.0001863,2]
[334005483,1722672696685,-525.77,0.0001863,2]
[334005484,1722672696694,-925.21,0.0001863,2]
[334005485,1722672696703,-500.0,0.0001863,2]
[334005486,1722672696714,-500.0,0.0001863,2]
[334005487,1722672696723,-500.0,0.0001863,2]
[334005488,1722672696735,-500.0,0.0001863,2]
[334005489,1722672696745,-500.0,0.0001863,2]
[334005490,1722672696755,-500.0,0.0001863,2]
[334005491,1722672696765,-500.0,0.0001863,2]
[334005492,1722672696775,-904.56,0.0001863,2]
[334005493,1722672696785,-501.53,0.0001863,2]
[334005494,1722672696795,-500.0,0.0001863,2]
[334005495,1722672696804,-500.0,0.0001863,2]
[334005496,1722672696814,-500.0,0.0001863,2]
[334005497,1722672696823,-622.55,0.0001863,2]
[334005498,1722672696833,-540.33,0.0001863,2]
[334005499,1722672696843,-500.0,0.0001863,2]
[334005500,1722672696853,-602.82,0.0001863,2]
[334005501,1722672696863,-644.95,0.0001863,2]
[334005502,1722672696872,-503.96,0.0001863,2]
[334005503,1722672696881,-500.0,0.0001863,2]
[334005504,1722672696891,-825.13,0.0001863,2]
[334005505,1722672696900,-500.0,0.0001863,2]
[334005506,1722672696909,-500.0,0.0001863,2]
[334005507,1722672696919,-500.0,0.0001863,2]
[334005508,1722672696928,-500.0,0.0001863,2]
[334005509,1722672696938,-1519.4,0.0001863,2]
[334005510,1722672696947,-500.0,0.0001863,2]
[334005511,1722672696957,-500.0,0.0001863,2]
[334005512,1722672696968,-684.44,0.0001863,2]
[334005513,1722672696980,-249.74467552,0.0001863,2]
[334005514,1722672696996,-500.0,0.0001863,2]
[334005515,1722672697006,-500.0,0.0001863,2]
[334005516,1722672697016,-500.0,0.0001863,2]
[334005517,1722672697024,-584.67,0.0001863,2]
[334005518,1722672697034,-604.12,0.0001863,2]
[334005519,1722672697043,-528.36,0.0001863,2]
[334005520,1722672697053,-616.8,0.0001863,2]
[334005521,1722672697063,-500.0,0.0001863,2]
[334005522,1722672697072,-509.32,0.0001863,2]
[334005523,1722672697082,-500.0,0.0001863,2]
[334005524,1722672697092,-500.0,0.0001863,2]
[334005525,1722672697101,-743.5,0.0001863,2]
[334005526,1722672697110,-1060.37,0.0001863,2]
[334005527,1722672697119,-500.0,0.0001863,2]
[334005528,1722672697128,-774.18,0.0001863,2]
[334005529,1722672697137,-848.13,0.0001863,2]
[334005530,1722672697147,-712.98,0.0001863,2]
[334005531,1722672697157,-500.0,0.0001863,2]
[334005532,1722672697166,-772.65,0.0001863,2]
[334005533,1722672697176,-744.14,0.0001863,2]
[334005534,1722672697185,-500.0,0.0001863,2]
[334005535,1722672697195,-500.0,0.0001863,2]
[334005536,1722672697205,-958.9,0.0001863,2]
[334005537,1722672697215,-500.0,0.0001863,2]
[334005538,1722672697224,-500.0,0.0001863,2]
[334005539,1722672697237,-1086.35,0.0001863,2]
[334005540,1722672697247,-500.0,0.0001863,2]
[334005541,1722672697256,-500.0,0.0001863,2]
[334005542,1722672697265,-500.0,0.0001863,2]
[334005543,1722672697275,-500.0,0.0001863,2]
[334005544,1722672697285,-500.0,0.0001863,2]
[334005545,1722672697294,-879.02,0.0001863,2]
[334005546,1722672697304,-1083.8,0.0001863,2]
[334005547,1722672697314,-500.0,0.0001863,2]
[334005548,1722672697323,-500.0,0.0001863,2]
[334005549,1722672697333,-515.45,0.0001863,2]
[334005550,1722672697343,-500.0,0.0001863,2]
[334005551,1722672697352,-500.0,0.0001863,2]
[334005552,1722672697362,-582.42,0.0001863,2]
[334005553,1722672697371,-500.0,0.0001863,2]
[334005554,1722672697381,-500.0,0.0001863,2]
[334005555,1722672697390,-500.0,0.0001863,2]
[334005556,1722672697400,-500.0,0.0001863,2]
[334005557,1722672697410,-500.0,0.0001863,2]
[334005558,1722672697419,-500.0,0.0001863,2]
[334005559,1722672697429,-500.0,0.0001863,2]
[334005560,1722672697438,-500.0,0.0001863,2]
[334005561,1722672697448,-1218.45,0.0001863,2]
[334005562,1722672697457,-500.0,0.0001863,2]
[334005563,1722672697467,-527.92,0.0001863,2]
[334005564,1722672697478,-500.0,0.0001863,2]
[334005565,1722672697494,-500.0,0.0001863,2]
[334005566,1722672697504,-500.0,0.0001863,2]
[334005567,1722672697515,-611.34,0.0001863,2]
[334005568,1722672697525,-500.0,0.0001863,2]
[334005569,1722672697535,-500.0,0.0001863,2]
[334005570,1722672697545,-500.0,0.0001863,2]
[334005571,1722672697554,-500.0,0.0001863,2]
[334005572,1722672697564,-705.81,0.0001863,2]
[334005573,1722672697573,-661.0,0.0001863,2]
[334005574,1722672697583,-342.67,0.0001863,2]
[334005575,1722672697594,-500.0,0.0001863,2]
[334005576,1722672697604,-500.0,0.0001863,2]
[334005577,1722672697614,-638.82,0.0001863,2]
[334005578,1722672697624,-744.23,0.0001863,2]
[334005579,1722672697634,-500.0,0.0001863,2]
[334005580,1722672697644,-570.99,0.0001863,2]
[334005581,1722672697654,-727.54,0.0001863,2]
[334005582,1722672697663,-500.0,0.0001863,2]
[334005583,1722672697673,-500.0,0.0001863,2]
[334005584,1722672697682,-617.25,0.0001863,2]
[334005585,1722672697692,-500.0,0.0001863,2]
[334005586,1722672697702,-714.79,0.0001863,2]
[334005587,1722672697711,-556.41,0.0001863,2]
[334005588,1722672697721,-500.0,0.0001863,2]
[334005589,1722672697731,-500.0,0.0001863,2]
[334005590,1722672697741,-788.92,0.0001863,2]
[334005591,1722672697754,-1029.17,0.0001863,2]
[334005592,1722672697764,-500.0,0.0001863,2]
[334005593,1722672697773,-500.0,0.0001863,2]
[334005594,1722672697783,-710.03,0.0001863,2]
[334005595,1722672697793,-738.88,0.0001863,2]
[334005596,1722672697802,-539.38,0.0001863,2]
[334005597,1722672697811,-808.77,0.0001863,2]
[334005598,1722672697821,-500.0,0.0001863,2]
[334005599,1722672697830,-830.0,0.0001863,2]
[334005600,1722672697839,-554.02,0.0001863,2]
[334005601,1722672697849,-525.28,0.0001863,2]
[334005602,1722672697858,-500.0,0.0001863,2]
[334005603,1722672697867,-726.72,0.0001863,2]
[334005604,1722672697876,-500.0,0.0001863,2]
[334005605,1722672697886,-500.0,0.0001863,2]
[334005606,1722672697895,-500.0,0.0001863,2]
[334005607,1722672697905,-663.62,0.0001863,2]
[334005608,1722672697914,-209.357083,0.0001863,2]
[334005609,1722672697923,-500.0,0.0001863,2]
[334005610,1722672697933,-547.37,0.0001863,2]
[334005611,1722672697942,-500.0,0.0001863,2]
[334005612,1722672697951,-500.0,0.0001863,2]
[334005613,1722672697961,-658.43,0.0001863,2]
[334005614,1722672697970,-529.53,0.0001863,2]
[334005615,1722672697982,-1319.94,0.0001863,2]
[334005616,1722672697994,-1146.49,0.0001863,2]
[334005617,1722672698003,-4233.34,0.0001863,2]
[334005618,1722672698012,-500.0,0.0001863,2]
[334005619,1722672698021,-955.66,0.0001863,2]
[334005620,1722672698030,-595.12,0.0001863,2]
[334005621,1722672698039,-673.07,0.0001863,2]
[334005622,1722672698049,-500.0,0.0001863,2]
[334005623,1722672698059,-746.94,0.0001863,2]
[334005624,1722672698069,-834.43,0.0001863,2]
[334005625,1722672698078,-9414.57,0.0001863,2]
[334005626,1722672698087,-500.0,0.0001863,2]
[334005627,1722672698096,-500.0,0.0001863,2]
[334005628,1722672698106,-1422.26,0.0001863,2]
[334005629,1722672698115,-657.98,0.0001863,2]
[334005630,1722672698124,-500.0,0.0001863,2]
[334005631,1722672698134,-684.61,0.0001863,2]
[334005632,1722672698143,-500.0,0.0001863,2]
[334005633,1722672698152,-500.0,0.0001863,2]
[334005634,1722672698162,-905.13,0.0001863,2]
[334005635,1722672698171,-500.0,0.0001863,2]
[334005636,1722672698180,-755.85,0.0001863,2]
[334005637,1722672698189,-500.0,0.0001863,2]
[334005638,1722672698198,-561.29,0.0001863,2]
[334005639,1722672698207,-500.0,0.0001863,2]
[334005640,1722672698217,-530.79040311,0.0001863,2]
[334005641,1722672698229,-500.0,0.0001863,2]
[334005642,1722672698238,-857.89,0.0001863,2]
[334005643,1722672698247,-580.03,0.0001863,2]
[334005644,1722672698256,-42354.3,0.0001863,2]
[334005645,1722672698265,-5350.45,0.0001863,2]
[334005646,1722672698275,-500.0,0.0001863,2]
[334005647,1722672698284,-728.4,0.0001863,2]
[334005648,1722672698294,-500.0,0.0001863,2]
[334005649,1722672698304,-500.0,0.0001863,2]
[334005650,1722672698313,-3471.03,0.0001863,2]
[334005651,1722672698322,-609.74,0.0001863,2]
[334005652,1722672698331,-1689.99,0.0001863,2]
[334005653,1722672698341,-6425.66,0.0001863,2]
[334005654,1722672698350,-339.81340184,0.0001863,2]
[334005655,1722672698359,-648.94,0.0001863,2]
[334005656,1722672698369,-500.0,0.0001863,2]
[334005657,1722672698378,-1670.28,0.0001863,2]
[334005658,1722672698387,-13172.1,0.0001863,2]
[334005659,1722672698397,-6701.04,0.0001863,2]
[334005660,1722672698406,-2424.35,0.0001863,2]
[334005661,1722672698416,-1079.15,0.0001863,2]
[334005662,1722672698425,-697.85,0.0001863,2]
[334005663,1722672698434,-1261.65,0.0001863,2]
[334005664,1722672698443,-1264.29,0.0001863,2]
[334005665,1722672698453,-500.0,0.0001863,2]
[334005666,1722672698462,-500.0,0.0001863,2]
[334005667,1722672698471,-3981.7,0.0001863,2]
[334005668,1722672698480,-808.41,0.0001863,2]
[334005669,1722672698489,-9537.11,0.0001863,2]
[334005670,1722672698499,-649.59491986,0.0001863,2]
[334005671,1722672698508,-627.46,0.0001863,2]
[334005672,1722672698521,-873.33,0.0001863,2]
[334005673,1722672698530,-4527.79,0.0001863,2]
[334005674,1722672698539,-1120.2,0.0001863,2]
[334005675,1722672698548,-500.0,0.0001863,2]
[334005676,1722672698558,-500.0,0.0001863,2]
[334005677,1722672698567,-1413.65,0.0001863,2]
[334005678,1722672698576,-799.1,0.0001863,2]
[334005679,1722672698585,-2582.22,0.0001863,2]
[334005680,1722672698596,-500.0,0.0001863,2]
[334005681,1722672698605,-500.0,0.0001863,2]
[334005682,1722672698614,-500.0,0.0001863,2]
[334005683,1722672698623,-558.9,0.0001863,2]
[334005684,1722672698632,-4338.65,0.0001863,2]
[334005685,1722672698641,-500.0,0.0001863,2]
[334005686,1722672698650,-589.65,0.0001863,2]
[334005687,1722672698659,-500.0,0.0001863,2]
[334005688,1722672698669,-6299.84,0.0001863,2]
[334005689,1722672698677,-500.0,0.0001863,2]
[334005690,1722672698687,-3567.38,0.0001863,2]
[334005691,1722672698696,-504.8,0.0001863,2]
[334005692,1722672698705,-500.0,0.0001863,2]
[334005693,1722672698714,-1132.78,0.0001863,2]
[334005694,1722672698724,-527.09,0.0001863,2]
[334005695,1722672698734,-500.0,0.0001863,2]
[334005696,1722672698743,-430.45346522,0.0001863,2]
[334005697,1722672698753,-557.75,0.0001863,2]
[334005698,1722672698763,-500.0,0.0001863,2]
[334005699,1722672698772,-500.0,0.0001863,2]
[334005700,1722672698781,-775.61,0.0001863,2]
[334005701,1722672698791,-5075.14,0.0001863,2]
[334005702,1722672698800,-500.0,0.0001863,2]
[334005703,1722672698809,-1597.24,0.0001863,2]
[334005704,1722672698818,-524.51,0.0001863,2]
[334005705,1722672698827,-2236.78,0.0001863,2]
[334005706,1722672698836,-591.43,0.0001863,2]
[334005707,1722672698846,-739.97,0.0001863,2]
[334005708,1722672698855,-1988.37,0.0001863,2]
[334005709,1722672698865,-500.0,0.0001863,2]
[334005710,1722672698874,-500.0,0.0001863,2]
[334005711,1722672698884,-1779.35,0.0001863,2]
[334005712,1722672698893,-1153.18,0.0001863,2]
[334005713,1722672698902,-7580.49,0.0001863,2]
[334005714,1722672698911,-806.0,0.0001863,2]
[334005715,1722672698920,-520.82,0.0001863,2]
[334005716,1722672698930,-1222.12,0.0001863,2]
[334005717,1722672698939,-543.96,0.0001863,2]
[334005718,1722672698948,-500.0,0.0001863,2]
[334005719,1722672698958,-500.0,0.0001863,2]
[334005720,1722672698969,-1766.59,0.0001863,2]
[334005721,1722672698980,-2755.57,0.0001863,2]
[334005722,1722672698991,-500.0,0.0001863,2]
[334005723,1722672699000,-500.0,0.0001863,2]
[334005724,1722672699010,-6784.85,0.0001863,2]
[334005725,1722672699019,-500.0,0.0001863,2]
[334005726,1722672699028,-1170.99,0.0001863,2]
[334005727,1722672699038,-500.0,0.0001863,2]
[334005728,1722672699047,-1509.0,0.0001863,2]
[334005729,1722672699056,-2272.41,0.0001863,2]
[334005730,1722672699065,-1134.66,0.0001863,2]
[334005731,1722672699075,-788.7,0.0001863,2]
[334005732,1722672699084,-500.0,0.0001863,2]
[334005733,1722672699093,-500.0,0.0001863,2]
[334005734,1722672699103,-500.0,0.0001863,2]
[334005735,1722672699112,-500.0,0.0001863,2]
[334005736,1722672699122,-500.0,0.0001863,2]
[334005737,1722672699131,-556.92,0.0001863,2]
[334005738,1722672699141,-851.8,0.0001863,2]
[334005739,1722672699150,-500.0,0.0001863,2]
[334005740,1722672699160,-829.82,0.0001863,2]
[334005741,1722672699171,-500.0,0.0001863,2]
[334005742,1722672699181,-978.08,0.0001863,2]
[334005743,1722672699191,-3555.81,0.0001863,2]
[334005744,1722672699200,-1000.11,0.0001863,2]
[334005745,1722672699210,-500.0,0.0001863,2]
[334005746,1722672699219,-1173.97,0.0001863,2]
[334005747,1722672699229,-500.0,0.0001863,2]
[334005748,1722672699238,-500.0,0.0001863,2]
[334005749,1722672699247,-6514.15,0.0001863,2]
[334005750,1722672699257,-500.0,0.0001863,2]
[334005751,1722672699267,-828.77,0.0001863,2]
[334005752,1722672699277,-1272.15,0.0001863,2]
[334005753,1722672699287,-3333.78,0.0001863,2]
[334005754,1722672699296,-1598.98,0.0001863,2]
[334005755,1722672699306,-1643.08,0.0001863,2]
[334005756,1722672699316,-2015.77,0.0001863,2]
[334005757,1722672699326,-3382.08,0.0001863,2]
[334005758,1722672699335,-1056.18,0.0001863,2]
[334005759,1722672699344,-1410.26,0.0001863,2]
[334005760,1722672699354,-500.0,0.0001863,2]
[334005761,1722672699363,-500.0,0.0001863,2]
[334005762,1722672699372,-657.49,0.0001863,2]
[334005763,1722672699381,-194.04070415,0.0001863,2]
[334005764,1722672699390,-1314.36,0.0001863,2]
[334005765,1722672699399,-5105.47,0.0001863,2]
[334005766,1722672699409,-1117.0,0.0001863,2]
[334005767,1722672699418,-863.0,0.0001863,2]
[334005768,1722672699428,-988.31,0.0001863,2]
[334005769,1722672699437,-500.0,0.0001863,2]
[334005770,1722672699447,-588.88,0.0001863,2]
[334005771,1722672699458,-916.53,0.0001863,2]
[334005772,1722672699467,-500.0,0.0001863,2]
[334005773,1722672699478,-3858.07,0.0001863,2]
[334005774,1722672699488,-886.61,0.0001863,2]
[334005775,1722672699498,-2523.24,0.0001863,2]
[334005776,1722672699507,-1144.92,0.0001863,2]
[334005777,1722672699520,-500.0,0.0001863,2]
[334005778,1722672699529,-1055.01,0.0001863,2]
[334005779,1722672699539,-500.0,0.0001863,2]
[334005780,1722672699548,-596.99,0.0001863,2]
[334005781,1722672699558,-500.0,0.0001863,2]
[334005782,1722672699569,-867.52,0.0001863,2]
[334005783,1722672699578,-758.07,0.0001863,2]
[334005784,1722672699588,-500.0,0.0001863,2]
[334005785,1722672699599,-1413.54,0.0001863,2]
[334005786,1722672699608,-500.0,0.0001863,2]
[334005787,1722672699617,-626.69,0.0001863,2]
[334005788,1722672699627,-1086.46,0.0001863,2]
[334005789,1722672699636,-500.0,0.0001863,2]
[334005790,1722672699646,-945.91,0.0001863,2]
[334005791,1722672699655,-1048.09,0.0001863,2]
[334005792,1722672699665,-503.04,0.0001863,2]
[334005793,1722672699675,-2243.32,0.0001863,2]
[334005794,1722672699685,-500.0,0.0001863,2]
[334005795,1722672699694,-2041.55,0.0001863,2]
[334005796,1722672699703,-1876.41,0.0001863,2]
[334005797,1722672699713,-876.92,0.0001863,2]
[334005798,1722672699723,-500.0,0.0001863,2]
[334005799,1722672699733,-1974.73,0.0001863,2]
[334005800,1722672699743,-596.72,0.0001863,2]
[334005801,1722672699753,-500.0,0.0001863,2]
[334005802,1722672699762,-849.08,0.0001863,2]
[334005803,1722672699772,-1836.41,0.0001863,2]
[334005804,1722672699781,-500.0,0.0001863,2]
[334005805,1722672699791,-1295.33,0.0001863,2]
[334005806,1722672699800,-3536.23,0.0001863,2]
[334005807,1722672699810,-2083.37,0.0001863,2]
[334005808,1722672699819,-500.0,0.0001863,2]
[334005809,1722672699828,-500.0,0.0001863,2]
[334005810,1722672699838,-500.0,0.0001863,2]
[334005811,1722672699847,-500.0,0.0001863,2]
[334005812,1722672699855,-1001.94,0.0001863,2]
[334005813,1722672699865,-3080.78,0.0001863,2]
[334005814,1722672699874,-547.37,0.0001863,2]
[334005815,1722672699884,-500.0,0.0001863,2]
[334005816,1722672699894,-3054.54,0.0001863,2]
[334005817,1722672699904,-1224.2,0.0001863,2]
[334005818,1722672699913,-1519.85,0.0001863,2]
[334005819,1722672699923,-1194.14,0.0001863,2]
[334005820,1722672699932,-793.38,0.0001863,2]
[334005821,1722672699942,-500.0,0.0001863,2]
[334005822,1722672699951,-871.03,0.0001863,2]
[334005823,1722672699961,-525.65,0.0001863,2]
[334005824,1722672699971,-1267.34,0.0001863,2]
[334005825,1722672699982,-500.0,0.0001863,2]
[334005826,1722672699991,-3366.59,0.0001863,2]
[334005827,1722672700000,-992.94,0.0001863,2]
[334005828,1722672700010,-550.93,0.0001863,2]
[334005829,1722672700019,-555.73,0.0001863,2]
[334005830,1722672700028,-218.47577911,0.0001863,2]
[334005831,1722672700038,-500.0,0.0001863,2]
[334005832,1722672700047,-642.28,0.0001863,2]
[334005833,1722672700056,-1946.82,0.0001863,2]
[334005834,1722672700066,-1662.23,0.0001863,2]
[334005835,1722672700075,-1212.94,0.0001863,2]
[334005836,1722672700085,-1900.41,0.0001863,2]
[334005837,1722672700094,-500.0,0.0001863,2]
[334005838,1722672700104,-937.73,0.0001863,2]
[334005839,1722672700113,-692.84,0.0001863,2]
[334005840,1722672700122,-1192.07,0.0001863,2]
[334005841,1722672700131,-2354.23,0.0001863,2]
[334005842,1722672700139,-1258.11,0.0001863,2]
[334005843,1722672700149,-500.0,0.0001863,2]
[334005844,1722672700158,-1060.96,0.0001863,2]
[334005845,1722672700168,-4981.79,0.0001863,2]
[334005846,1722672700178,-6100.7,0.0001863,2]
[334005847,1722672700187,-500.0,0.0001863,2]
[334005848,1722672700196,-937.04,0.0001863,2]
[334005849,1722672700206,-2840.72,0.0001863,2]
[334005850,1722672700215,-4003.25,0.0001863,2]
[334005851,1722672700225,-2170.91,0.0001863,2]
[334005852,1722672700242,-804.77,0.0001863,2]
[334005853,1722672700251,-500.0,0.0001863,2]
[334005854,1722672700261,-500.0,0.0001863,2]
[334005855,1722672700270,-1151.68,0.0001863,2]
[334005856,1722672700279,-2144.3,0.0001863,2]
[334005857,1722672700289,-500.0,0.0001863,2]
[334005858,1722672700298,-721.28,0.0001863,2]
[334005859,1722672700308,-500.0,0.0001863,2]
[334005860,1722672700317,-1032.34,0.0001863,2]
[334005861,1722672700327,-549.7,0.0001863,2]
[334005862,1722672700336,-2037.25,0.0001863,2]
[334005863,1722672700345,-928.42,0.0001863,2]
[334005864,1722672700354,-3499.27,0.0001863,2]
[334005865,1722672700363,-1536.28,0.0001863,2]
[334005866,1722672700373,-500.0,0.0001863,2]
[334005867,1722672700383,-1037.63,0.0001863,2]
[334005868,1722672700393,-1737.33,0.0001863,2]
[334005869,1722672700403,-1095.94,0.0001863,2]
[334005870,1722672700412,-1906.6,0.0001863,2]
[334005871,1722672700422,-500.0,0.0001863,2]
[334005872,1722672700432,-500.0,0.0001863,2]
[334005873,1722672700442,-663.02,0.0001863,2]
[334005874,1722672700453,-416.0,0.00018793,2]
[334005875,1722672700465,-2000.0,0.000188,2]
[334005876,1722672700475,-307.30186417,0.0001884,2]
[334005877,1722672700486,-150.0,0.00018872,2]
[334005878,1722672700495,-530.37,0.00018872,2]
[334005879,1722672700504,-1060.74,0.00018872,2]
[334005880,1722672700516,-200.0,0.000189,6]
[334005881,1722672700527,-781.58854722,0.00018904,2]
[334005882,1722672700537,-9378.82424414,0.00018904,2]
[334005883,1722672700546,-500.0,0.00018904,2]
[334005884,1722672700556,-500.0,0.00018904,2]
[334005885,1722672700565,-500.0,0.00018904,2]
[334005886,1722672700576,-500.0,0.00018904,2]
[334005887,1722672700585,-500.0,0.00018904,2]
[334005888,1722672700597,-500.0,0.00018904,2]
[334005889,1722672700608,-500.0,0.00018904,2]
[334005890,1722672700618,-500.0,0.00018904,2]
[334005891,1722672700627,-500.0,0.00018904,2]
[334005892,1722672700636,-500.0,0.00018904,2]
[334005893,1722672700646,-500.0,0.00018904,2]
[334005894,1722672700655,-500.0,0.00018904,2]
[334005895,1722672700664,-537.74,0.00018904,2]
[334005896,1722672700674,-500.0,0.00018904,2]
[334005897,1722672700684,-500.0,0.00018904,2]
[334005898,1722672700693,-907.58,0.00018904,2]
[334005899,1722672700702,-500.0,0.00018904,2]
[334005900,1722672700711,-500.0,0.00018904,2]
[334005901,1722672700721,-500.0,0.00018904,2]
[334005902,1722672700732,-500.0,0.00018904,2]
[334005903,1722672700741,-500.0,0.00018904,2]
[334005904,1722672700750,-560.39,0.00018904,2]
[334005905,1722672700872,-500.0,0.00018904,2]
[334005906,1722672700888,-550.32,0.00018904,2]
[334005907,1722672700897,-548.45,0.00018904,2]
[334005908,1722672700906,-634.11596682,0.00018904,2]
[334005909,1722672700916,-500.0,0.00018904,2]
[334005910,1722672700925,-500.0,0.00018904,2]
[334005911,1722672700934,-599.16,0.00018904,2]
[334005912,1722672700943,-500.0,0.00018904,2]
[334005913,1722672700953,-500.0,0.00018904,2]
[334005914,1722672700962,-500.0,0.00018904,2]
[334005915,1722672700971,-500.0,0.00018904,2]
[334005916,1722672700983,-500.0,0.00018904,2]
[334005917,1722672700992,-561.29,0.00018904,2]
[334005918,1722672701002,-528.88,0.00018904,2]
[334005919,1722672701011,-500.0,0.00018904,2]
[334005920,1722672701021,-434.05727794,0.00018904,2]
[334005921,1722672701030,-500.0,0.00018904,2]
[334005922,1722672701039,-500.0,0.00018904,2]
[334005923,1722672701049,-500.0,0.00018904,2]
[334005924,1722672701058,-172.15469406,0.00018904,2]
[334005925,1722672701068,-706.98,0.00018904,2]
[334005926,1722672701077,-500.0,0.00018904,2]
[334005927,1722672701087,-500.0,0.00018904,2]
[334005928,1722672701096,-500.0,0.00018904,2]
[334005929,1722672701106,-500.0,0.00018904,2]
[334005930,1722672701116,-500.0,0.00018904,2]
[334005931,1722672701127,-500.0,0.00018904,2]
[334005932,1722672701137,-696.17,0.00018904,2]
[334005933,1722672701147,-185.68425539,0.00018904,2]
[334005934,1722672701157,-500.0,0.00018904,2]
[334005935,1722672701166,-500.0,0.00018904,2]
[334005936,1722672701175,-500.0,0.00018904,2]
[334005937,1722672701185,-500.0,0.00018904,2]
[334005938,1722672701194,-500.0,0.00018904,2]
[334005939,1722672701204,-500.0,0.00018904,2]